bitfinex-derivatives/quotes_ETHF0:USTF0_20251028
["timestamp","ask_amount","ask_price","bid_price","bid_amount"]
[1761642061360,0.7371,4125.3,4125.2,0.2201]
[1761642061752,0.7371,4125.3,4125.2,1.41086129]
[1761642062649,0.7371,4125.3,4125.2,1.75596129]
[1761642063262,0.7371,4125.3,4125.2,1.97876129]
[1761642065659,0.5262,4125.3,4125.2,1.97876129]
[1761642065957,0.2084,4125.3,4125.2,1.97876129]
[1761642066257,0.5491,4125.3,4125.2,1.97876129]
[1761642067761,40.8,4125.9,4125.5,0.1268]
[1761642067967,41.1399,4125.9,4125.8,0.7719]
[1761642068161,41.71383379,4125.9,4125.8,0.7719]
[1761642068969,41.71383379,4125.9,4125.8,0.4395]
[1761642069266,0.7763,4125.7,4125.6,0.5594]
[1761642069465,0.7763,4125.7,4125.6,0.99574]
[1761642071161,0.7763,4125.7,4125.6,1.20824]
[1761642075076,0.5539,4125.7,4125.6,1.20824]
[1761642075276,0.1296,4126.0,4125.5,0.1268]
[1761642075277,0.5539,4126.0,4125.9,1.20821]
[1761642075667,1.12794694,4126.0,4125.9,1.20821]
[1761642075863,0.78804694,4126.0,4125.9,2.39897129]
[1761642076069,40.8,4126.4,4126.2,0.7719]
[1761642076369,1.35032994,4126.3,4126.2,0.7719]
[1761642076769,1.35032994,4126.3,4126.2,1.96266129]
[1761642076969,1.35032994,4126.3,4126.2,2.39894129]
[1761642080177,1.35032994,4126.3,4126.2,0.7719]
[1761642080377,1.35032994,4126.3,4126.0,0.43629]
[1761642080677,40.8,4126.4,4125.5,1.21767]
[1761642080678,1.35032994,4126.2,4126.1,2.18644129]
[1761642080870,1.35032994,4126.2,4126.1,0.99568]
[1761642081070,1.35032994,4126.2,4126.1,1.20818]
[1761642081875,0.57402994,4126.2,4126.1,1.20818]
[1761642082872,0.91392994,4126.2,4126.1,1.20818]
[1761642083479,1.12792994,4126.2,4126.1,1.20818]
[1761642084883,1.35032994,4126.2,4126.1,0.7719]
[1761642085383,1.35032994,4126.2,4126.1,1.20819]
[1761642086080,0.57402994,4126.2,4126.1,1.20819]
[1761642086475,41.1399,4126.4,4126.2,0.43626]
[1761642086681,0.5539,4126.6,4126.5,0.7719]
[1761642087386,1.12399246,4126.6,4126.5,2.08946129]
[1761642087587,1.12399246,4126.6,4126.5,2.52570129]
[1761642088081,0.78409246,4126.6,4126.5,2.52570129]
[1761642088278,1.12399246,4126.6,4126.5,2.52570129]
[1761642088592,0.57009246,4126.6,4126.5,2.52570129]
[1761642088881,0.3399,4126.9,4126.6,0.43623]
[1761642089077,0.4364,4126.9,4126.8,0.7719]
[1761642089274,1.00636411,4126.9,4126.8,1.96266129]
[1761642089479,1.00636411,4126.9,4126.8,1.20811]
[1761642089975,1.34626411,4126.9,4126.8,1.20811]
[1761642090180,0.56996411,4126.9,4126.8,1.20811]
[1761642090782,0.55660371,4127.0,4126.9,1.2081]
[1761642091174,0.55660371,4127.0,4126.9,2.39886129]
[1761642092582,0.21670371,4127.0,4126.9,2.39886129]
[1761642093089,0.00270371,4127.0,4126.9,2.39886129]
[1761642093886,0.87273536,4128.2,4126.9,1.63026129]
[1761642094083,2.0818547,4128.5,4128.4,0.7719]
[1761642094279,0.3429,4128.8,4128.4,1.96266129]
[1761642094491,0.7859,4128.6,4128.5,1.96246129]
[1761642094785,0.7859,4128.4,4128.3,0.5504]
[1761642094985,0.7859,4128.4,4128.3,1.96246129]
[1761642095185,0.7859,4128.8,4128.4,0.331]
[1761642095386,0.3429,4128.3,4128.2,0.331]
[1761642095580,0.5644,4128.3,4128.2,0.7717]
[1761642095784,0.5644,4128.3,4128.2,1.96550934]
[1761642097091,0.22339737,4128.8,4128.2,1.63450934]
[1761642097293,0.00189737,4128.8,4128.7,2.39847129]
[1761642098679,0.19257761,4130.4,4129.4,0.43594]
[1761642098885,0.7859,4129.8,4129.7,0.7717]
[1761642099792,0.78768654,4129.8,4129.7,0.7717]
[1761642100894,0.78768654,4129.8,4128.0,0.1338]
[1761642100895,0.7859,4128.9,4128.8,0.9864]
[1761642101192,0.7859,4128.9,4128.8,1.2077]
[1761642101386,0.1319,4129.5,4128.9,0.43598]
[1761642101387,0.43594,4129.4,4128.9,0.43598]
[1761642101693,0.7859,4129.2,4129.1,0.7717]
[1761642103686,0.7859,4129.2,4129.1,0.2194]
[1761642104283,0.7859,4129.2,4128.8,0.331]
[1761642104284,0.2215,4128.9,4128.8,0.5504]
[1761642104485,0.7859,4128.9,4128.8,0.7717]
[1761642105991,0.5644,4128.9,4128.8,0.7717]
[1761642106599,0.7859,4128.9,4128.8,0.7717]
[1761642111194,0.5644,4128.9,4128.8,0.7717]
[1761642111495,0.5644,4128.9,4128.8,0.8767]
[1761642111698,0.7859,4128.9,4128.8,0.8767]
[1761642111886,0.7859,4128.9,4128.8,1.2077]
[1761642113094,0.443,4128.6,4128.5,0.5504]
[1761642113300,0.7859,4128.3,4128.2,0.55344805]
[1761642113800,0.7859,4128.3,4128.2,1.74420934]
[1761642114296,0.7859,4128.3,4128.2,2.40157934]
[1761642114492,0.7859,4128.3,4128.2,1.96550934]
[1761642114694,0.5644,4128.8,4128.7,0.4407]
[1761642114900,0.3429,4128.8,4128.7,1.20771]
[1761642115101,0.7859,4128.8,4128.7,2.39847129]
[1761642117098,0.7859,4128.8,4128.7,1.96246129]
[1761642117398,0.7859,4128.8,4128.7,2.39847129]
[1761642117996,0.5644,4129.1,4129.0,0.2194]
[1761642118197,0.2215,4129.1,4129.0,1.34148]
[1761642118403,0.5644,4129.4,4129.3,0.7717]
[1761642118606,0.7859,4129.4,4129.3,0.7717]
[1761642118898,0.443,4129.1,4129.0,0.7717]
[1761642119100,0.7859,4129.1,4129.0,1.63146129]
[1761642120006,0.7859,4129.1,4129.0,2.39844129]
[1761642120213,0.7859,4129.1,4129.0,2.53224129]
[1761642120502,0.7859,4129.3,4129.2,0.7717]
[1761642121304,1.33660193,4129.3,4129.2,0.7717]
[1761642121604,1.33660193,4129.3,4128.8,0.5504]
[1761642121605,0.443,4128.9,4128.8,0.5504]
[1761642121802,0.7859,4128.9,4128.8,0.2194]
[1761642122107,0.7859,4128.7,4128.6,0.98641]
[1761642122299,0.5644,4128.9,4128.8,0.8767]
[1761642122501,0.55112827,4128.9,4128.8,2.06746129]
[1761642122700,0.55112827,4128.9,4128.8,0.8767]
[1761642122901,0.55112827,4128.9,4128.8,1.2077]
[1761642122902,1.11552827,4128.9,4128.8,1.2077]
[1761642123104,0.2215,4128.9,4128.8,1.2077]
[1761642123606,0.77310018,4128.9,4128.8,1.2077]
[1761642123807,0.55160018,4128.9,4128.8,1.2077]
[1761642124007,0.5644,4129.2,4129.1,0.7717]
[1761642124209,1.11602451,4129.2,4129.1,0.7717]
[1761642124409,1.33752451,4129.2,4129.1,0.7717]
[1761642124707,0.55162451,4129.2,4129.1,0.7717]
[1761642125411,1.33032451,4129.2,4129.1,0.7717]
[1761642126508,1.33052754,4129.2,4129.1,0.7717]
[1761642127213,1.33052754,4129.2,4129.1,1.20767]
[1761642128308,0.78012754,4129.2,4129.1,1.20767]
[1761642128505,0.50314973,4129.2,4129.1,1.20767]
[1761642128712,40.8,4129.4,4129.2,0.3251]
[1761642129015,41.133,4129.4,4129.3,1.20055]
[1761642130208,40.8,4129.4,4129.3,1.20055]
[1761642130411,0.7717,4129.5,4129.4,0.7646]
[1761642130911,41.5717,4129.5,4129.4,0.7646]
[1761642132511,41.5717,4129.5,4129.4,1.20054]
[1761642132814,41.5717,4129.5,4129.4,0.7646]
[1761642133023,41.5717,4129.5,4129.4,1.20054]
[1761642134417,41.7007,4129.5,4129.4,1.20054]
[1761642134710,41.7007,4129.5,4129.4,0.7646]
[1761642134919,0.7717,4128.8,4128.7,1.28660574]
[1761642135108,0.7717,4128.3,4128.2,0.00304805]
[1761642135611,0.7717,4128.3,4128.2,1.41610934]
[1761642136916,0.7717,4128.3,4128.2,0.00304805]
[1761642137619,41.5717,4128.3,4128.2,0.00304805]
[1761642138125,41.5717,4128.3,4128.2,0.22534805]
[1761642139122,41.5717,4128.3,4128.2,0.55044805]
[1761642139322,41.5717,4128.3,4128.2,0.76764805]
[1761642140624,42.12365594,4128.3,4128.2,0.00304805]
[1761642141530,50.12355782,4128.3,4128.2,0.00304805]
[1761642142027,0.7717,4127.3,4127.2,0.5474]
[1761642142530,0.7717,4127.3,4127.2,1.73816129]
[1761642142735,0.9007,4127.0,4126.9,0.2223]
[1761642142939,0.7717,4126.7,4126.6,0.5474]
[1761642143139,0.7717,4126.7,4126.6,0.98363]
[1761642143334,0.7717,4126.7,4126.6,1.20083]
[1761642143837,0.7717,4126.7,4126.6,0.7646]
[1761642144036,0.7717,4126.7,4126.6,0.76658198]
[1761642144234,0.77350905,4126.7,4126.6,0.76658198]
[1761642144839,0.00180905,4126.7,4126.6,0.76658198]
[1761642147030,0.2226,4128.0,4126.7,0.3251]
[1761642147227,0.7717,4128.0,4127.9,0.7646]
[1761642147428,41.5717,4128.0,4127.9,0.7646]
[1761642147833,41.5717,4128.0,4127.9,1.95536129]
[1761642147834,40.8,4128.0,4127.9,1.95536129]
[1761642148133,0.2226,4128.2,4128.1,0.7646]
[1761642148332,0.333,4128.4,4128.2,0.3251]
[1761642148527,0.7717,4128.9,4128.8,0.5474]
[1761642148737,0.77409855,4128.9,4128.8,0.5474]
[1761642148926,0.77409855,4128.9,4128.8,0.2223]
[1761642149428,0.33539855,4128.9,4128.8,0.7646]
[1761642149930,0.00239855,4128.9,4128.8,0.7646]
[1761642152330,0.77409855,4128.9,4128.8,0.5474]
[1761642156743,0.77409855,4128.9,4128.8,0.2223]
[1761642157538,0.4454,4128.6,4128.5,0.426]
[1761642157840,0.7613,4128.6,4128.5,0.2111]
[1761642158242,41.5613,4128.6,4128.5,0.2111]
[1761642158636,40.8,4128.6,4128.5,2.08886129]
[1761642159243,0.53809855,4128.9,4128.8,0.7685]
[1761642159642,41.56369855,4128.9,4128.8,0.7685]
[1761642160945,0.76369855,4128.9,4128.8,0.7685]
[1761642161246,0.00239855,4128.9,4128.8,1.2045]
[1761642170647,0.53809855,4128.9,4128.8,1.2045]
[1761642171050,0.22219855,4128.9,4128.8,1.2045]
[1761642172550,0.53809855,4128.9,4128.8,1.2045]
[1761642173150,0.22219855,4128.9,4128.8,1.2045]
[1761642173754,0.00239855,4128.9,4128.8,1.2045]
[1761642174957,0.53809855,4128.9,4128.8,1.2045]
[1761642176254,0.76369855,4128.9,4128.8,0.7685]
[1761642176453,0.7613,4128.3,4128.2,1.84020574]
[1761642176651,0.7613,4128.3,4128.2,0.5536]
[1761642176856,0.7613,4128.3,4128.2,1.74436129]
[1761642177061,0.7613,4128.3,4128.2,1.95926129]
[1761642177649,41.1159,4128.8,4128.3,0.43605]
[1761642177961,0.7709476,4128.7,4128.6,0.7685]
[1761642178158,0.7613,4128.7,4128.6,0.7685]
[1761642178653,40.8,4128.8,4128.7,0.3425]
[1761642178860,0.5794,4128.5,4128.4,0.5536]
[1761642179155,0.7613,4127.9,4127.8,0.5536]
[1761642179357,0.3159,4128.4,4127.9,0.3425]
[1761642179559,0.4454,4128.4,4128.3,0.7685]
[1761642180062,0.7613,4128.4,4128.3,0.7685]
[1761642180762,0.7613,4128.4,4128.3,1.20455]
[1761642180960,0.4454,4128.7,4128.6,0.7685]
[1761642181264,0.00239855,4128.9,4128.8,0.7685]
[1761642181648,40.80239855,4128.9,4128.8,0.7685]
[1761642182058,41.11829855,4128.9,4128.8,0.7685]
[1761642182661,40.80239855,4128.9,4128.8,0.7685]
[1761642183163,41.11829855,4128.9,4128.8,1.2045]
[1761642183364,0.53809855,4128.9,4128.8,0.7685]
[1761642183555,0.53809855,4128.9,4128.8,1.2045]
[1761642183861,0.22219855,4128.9,4128.8,1.2045]
[1761642184061,0.22219855,4128.9,4128.8,0.7685]
[1761642184362,0.55929855,4128.9,4128.8,0.7685]
[1761642184862,0.77019855,4128.9,4128.8,0.7685]
[1761642187063,0.77019855,4128.9,4128.8,1.2045]
[1761642187658,0.77019855,4128.9,4128.8,0.7685]
[1761642189057,0.77019855,4128.9,4128.8,0.2111]
[1761642189260,1.32119973,4128.9,4128.8,0.2111]
[1761642189469,0.77019855,4128.9,4128.8,0.2111]
[1761642189659,1.32119187,4128.9,4128.5,0.3283]
[1761642189860,1.32119187,4128.9,4128.0,0.1296]
[1761642189861,0.7553,4128.4,4128.3,1.20425]
[1761642190064,0.7553,4128.4,4128.3,0.7682]
[1761642190365,0.7553,4128.4,4128.3,1.20425]
[1761642190768,0.2217,4128.4,4128.3,1.20425]
[1761642191068,0.5435,4128.6,4128.5,0.7682]
[1761642191262,0.00239855,4128.9,4128.7,0.4399]
[1761642191263,0.3218,4128.8,4128.7,0.4399]
[1761642191471,0.7553,4128.8,4128.7,1.20421]
[1761642191675,0.7553,4128.8,4128.7,0.7682]
[1761642196475,0.7553,4128.8,4128.7,1.20421]
[1761642196774,0.7553,4128.8,4128.7,0.7682]
[1761642201179,1.30784829,4128.8,4128.7,0.7682]
[1761642202972,1.30784829,4128.8,4128.7,0.2173]
[1761642203173,1.30784829,4128.8,4128.7,0.5456]
[1761642204474,0.55254829,4128.8,4128.7,2.39497129]
[1761642204779,0.00239855,4128.9,4128.8,1.2042]
[1761642204977,0.00239855,4128.9,4128.8,2.39496129]
[1761642205179,0.00239855,4128.9,4128.8,0.7682]
[1761642205180,0.75769855,4128.9,4128.8,0.7682]
[1761642206083,1.31075328,4128.9,4128.8,0.7682]
[1761642207273,1.09895328,4128.9,4128.8,1.2042]
[1761642207477,1.31075328,4128.9,4128.8,1.2042]
[1761642211587,0.55545328,4128.9,4128.8,1.2042]
[1761642214487,0.00239855,4128.9,4128.8,1.2042]
[1761642215591,0.00239855,4128.9,4128.8,2.50091496]
[1761642215780,1.00354435,4130.0,4129.5,0.43592]
[1761642215781,1.21454435,4130.0,4129.5,0.43592]
[1761642215979,0.5249,4129.7,4129.6,1.20942]
[1761642216179,0.5249,4129.7,4129.6,0.7735]
[1761642216487,1.07800896,4129.7,4129.6,0.7735]
[1761642216691,1.08091705,4129.7,4129.6,0.77536083]
[1761642216890,1.08091705,4129.7,4129.6,1.21128083]
[1761642217780,0.55601705,4129.7,4129.6,1.21128083]
[1761642218387,0.00290809,4129.7,4129.6,1.21128083]
[1761642218691,0.4205,4130.7,4130.6,0.7735]
[1761642218891,0.97282176,4130.7,4130.6,0.7735]
[1761642219090,1.28672176,4130.7,4130.6,0.7735]
[1761642219289,0.5249,4130.7,4130.6,0.7735]
[1761642219487,0.52802827,4130.7,4130.6,0.7735]
[1761642220080,0.00312827,4130.7,4130.6,0.7735]
[1761642221390,0.73752827,4130.7,4130.6,0.7735]
[1761642223090,0.73752827,4130.7,4130.0,0.135]
[1761642223091,0.4205,4130.4,4130.3,0.5528]
[1761642223290,0.7344,4130.4,4130.3,0.7735]
[1761642225292,0.85636,4130.2,4130.1,0.215]
[1761642225491,0.4205,4130.2,4130.1,0.7735]
[1761642225793,0.43584,4130.4,4130.3,0.2207]
[1761642225794,0.5249,4130.4,4130.3,0.2207]
[1761642225989,0.5249,4130.4,4130.3,0.7735]
[1761642226293,0.7344,4130.4,4130.3,0.7735]
[1761642226700,0.7344,4130.4,4130.0,0.57087]
[1761642226701,0.3139,4130.3,4130.0,0.5528]
[1761642226896,0.7344,4130.2,4130.1,1.40576129]
[1761642227095,0.7344,4130.2,4130.1,1.74356129]
[1761642227397,0.7344,4130.2,4130.1,0.5528]
[1761642228302,0.7344,4129.8,4129.7,1.2094]
[1761642228498,0.4205,4130.0,4129.9,0.7735]
[1761642228796,0.7344,4130.0,4129.9,0.7735]
[1761642229003,0.8679,4130.0,4129.9,0.7735]
[1761642229197,0.5249,4130.2,4130.1,0.5585]
[1761642229395,0.7344,4130.2,4130.1,0.7735]
[1761642229586,40.8,4130.4,4129.8,0.5528]
[1761642229587,0.1335,4130.0,4129.8,0.5528]
[1761642229789,41.1139,4130.4,4130.3,0.215]
[1761642229994,41.1139,4130.4,4130.3,0.5528]
[1761642230194,0.7344,4130.0,4129.9,0.7735]
[1761642230391,0.8679,4130.0,4129.9,0.215]
[1761642230597,0.5249,4129.9,4129.7,0.3378]
[1761642230902,0.4205,4129.9,4129.8,1.96426129]
[1761642231091,0.4205,4129.9,4129.7,1.19076129]
[1761642231297,0.7344,4129.8,4129.7,1.40576129]
[1761642231497,0.7344,4129.8,4129.7,0.5528]
[1761642231799,0.7344,4129.8,4129.7,1.74356129]
[1761642234303,0.7344,4129.8,4129.7,1.96426129]
[1761642236599,0.7344,4129.8,4129.7,2.40017129]
[1761642237001,0.5249,4129.8,4129.7,2.40017129]
[1761642237301,0.5249,4130.1,4130.0,1.34437]
[1761642237595,0.5249,4130.1,4130.0,0.9085]
[1761642237800,0.5249,4130.1,4130.0,2.53513129]
[1761642238795,0.7344,4130.1,4130.0,2.09926129]
[1761642240404,0.7344,4130.1,4130.0,2.53513129]
[1761642240803,0.211,4130.1,4130.0,2.53513129]
[1761642242001,0.211,4130.1,4130.0,1.34437]
[1761642242301,0.211,4130.1,4130.0,2.53513129]
[1761642242501,0.211,4129.8,4129.7,0.3378]
[1761642242700,0.7344,4129.8,4129.7,1.96426129]
[1761642242897,0.7344,4129.8,4129.7,1.40576129]
[1761642243105,0.7344,4129.7,4129.6,0.00186083]
[1761642243500,0.7344,4129.7,4129.6,0.55466083]
[1761642243806,0.5249,4129.7,4129.6,0.77536083]
[1761642244197,0.7344,4129.7,4129.6,0.77536083]
[1761642245109,0.7344,4129.7,4129.6,1.21128083]
[1761642245313,0.4253,4130.0,4129.9,0.7497]
[1761642245610,0.4253,4130.0,4129.9,1.18559]
[1761642245806,0.7545,4130.0,4129.9,1.18559]
[1761642246205,0.7545,4130.0,4129.9,0.7497]
[1761642246405,0.7545,4130.0,4129.6,0.96787083]
[1761642246406,0.3292,4129.9,4129.6,0.96787083]
[1761642246601,0.7545,4129.7,4129.6,0.53196083]
[1761642247011,0.7545,4129.7,4129.6,0.96788083]
[1761642247510,0.7545,4129.7,4129.6,1.19788083]
[1761642248210,0.7545,4129.7,4129.6,0.21816083]
[1761642248411,0.7545,4129.7,4129.6,0.00186083]
[1761642248712,0.7615,4128.7,4128.6,0.5461]
[1761642249107,0.7615,4128.7,4128.6,0.7761]
[1761642249509,0.7615,4128.7,4128.6,0.77844955]
[1761642251106,0.7615,4128.7,4128.6,1.21446955]
[1761642251514,0.7615,4128.7,4128.6,0.77844955]
[1761642252314,0.7615,4128.7,4128.6,1.21446955]
[1761642253514,40.8,4128.9,4128.7,0.7553]
[1761642253812,40.8,4128.9,4128.8,0.7761]
[1761642254110,41.1356,4128.9,4128.8,0.7761]
[1761642255613,41.1356,4128.9,4128.8,1.2121]
[1761642258716,41.1356,4128.9,4128.8,0.7761]
[1761642259213,41.1356,4128.9,4128.8,1.2121]
[1761642261108,0.546,4128.9,4128.8,1.2121]
[1761642261314,0.7615,4128.9,4128.8,1.2121]
[1761642262919,0.7615,4128.9,4128.8,0.7761]
[1761642263317,0.7615,4128.9,4128.8,1.2121]
[1761642265121,0.7615,4128.9,4128.8,0.7761]
[1761642265320,0.7615,4128.9,4128.8,1.2121]
[1761642266020,0.7615,4129.0,4128.9,0.89279]
[1761642266415,0.7615,4129.0,4128.9,2.08355129]
[1761642266708,0.7615,4129.0,4128.9,2.40285129]
[1761642267420,0.8881,4129.0,4128.9,1.96686129]
[1761642267721,0.8881,4129.0,4128.9,1.41756129]
[1761642268517,0.8881,4129.0,4128.9,1.19076129]
[1761642268924,0.3356,4128.9,4128.6,0.98446955]
[1761642269125,0.7615,4128.7,4128.6,0.98446955]
[1761642269613,0.7615,4128.7,4128.6,0.54844955]
[1761642270420,0.7615,4128.7,4128.6,0.00234955]
[1761642274519,1.31179005,4128.7,4128.6,0.00234955]
[1761642276124,42.11179005,4128.7,4128.6,0.00234955]
[1761642282726,42.11179005,4128.7,4128.6,0.55344955]
[1761642283230,42.11179005,4128.7,4128.6,0.00234955]
[1761642285133,42.11179005,4128.7,4128.6,0.22224955]
[1761642285436,42.11179005,4128.7,4128.6,0.55344955]
[1761642286628,42.11179005,4128.7,4128.6,0.22224955]
[1761642286928,42.11179005,4128.7,4128.6,0.00234955]
[1761642288135,42.11179005,4128.7,4128.6,0.55344955]
[1761642289639,0.76069005,4128.7,4128.6,1.20736955]
[1761642290139,0.2104,4128.7,4128.6,1.20736955]
[1761642290333,1.10089699,4128.7,4128.6,1.20736955]
[1761642291534,0.55369699,4128.7,4128.6,1.20736955]
[1761642291838,1.10080031,4128.8,4128.7,1.20501]
[1761642292133,1.1008003,4128.8,4128.7,2.39577129]
[1761642295742,1.3108003,4128.8,4128.7,2.39577129]
[1761642296041,1.3108003,4128.8,4128.7,1.41066129]
[1761642296239,0.9740003,4128.8,4128.6,0.00234955]
[1761642296550,1.3108003,4128.7,4128.6,0.00234955]
[1761642297840,42.1108003,4128.7,4128.6,0.00234955]
[1761642299538,42.97991505,4128.7,4128.6,0.00234955]
[1761642301243,42.1108003,4128.7,4128.6,0.00234955]
[1761642305650,42.97991505,4128.7,4128.6,0.00234955]
[1761642306249,42.1108003,4128.7,4128.6,0.00234955]
[1761642309853,1.3108003,4128.7,4128.6,0.55334955]
[1761642311354,1.3108003,4128.7,4128.6,0.00234955]
[1761642311759,42.1108003,4128.7,4128.6,0.00234955]
[1761642313856,42.1108003,4128.7,4128.6,0.22374955]
[1761642314863,42.1108003,4128.7,4128.6,0.00234955]
[1761642317662,41.7740003,4128.7,4127.5,0.551]
[1761642317858,41.7740003,4128.7,4126.9,1.09051]
[1761642317859,0.4501,4127.7,4127.6,1.74176129]
[1761642318062,0.7909,4127.7,4127.6,0.551]
[1761642318662,0.79374432,4127.7,4127.6,0.77426526]
[1761642318870,0.79374432,4127.7,4127.6,1.21039526]
[1761642319170,0.79374432,4127.7,4127.6,0.77426526]
[1761642319372,0.79374432,4127.7,4127.6,1.21039526]
[1761642321072,0.23354432,4127.7,4127.6,1.21039526]
[1761642321267,0.00284432,4127.7,4127.6,1.21039526]
[1761642321871,0.57434432,4127.7,4127.6,1.21039526]
[1761642322170,0.23354432,4127.7,4127.6,1.21039526]
[1761642322663,0.00284432,4127.7,4127.6,1.21039526]
[1761642334385,0.78074432,4127.7,4127.6,0.22346526]
[1761642334680,0.78074432,4127.7,4127.6,0.78626526]
[1761642335182,0.00284432,4127.7,4127.6,0.78626526]
[1761642335384,0.00284432,4127.7,4127.6,1.22239526]
[1761642337282,0.1346,4129.0,4128.7,0.3317]
[1761642337283,0.5485,4129.0,4128.7,0.3317]
[1761642337481,0.7784,4129.0,4128.9,0.7885]
[1761642337681,1.33240907,4129.0,4128.9,0.7885]
[1761642338176,1.33547829,4129.0,4128.9,1.97926129]
[1761642338680,0.78827829,4129.0,4128.9,1.97926129]
[1761642339182,1.10557829,4129.0,4128.9,1.97926129]
[1761642343581,1.33547829,4129.0,4128.9,1.97926129]
[1761642343987,1.46087829,4129.0,4128.9,1.97926129]
[1761642346382,1.46087829,4129.0,4128.9,0.5574]
[1761642346587,1.46087829,4129.0,4128.6,0.2257]
[1761642346588,0.7784,4128.7,4128.6,0.2257]
[1761642346784,1.33240907,4128.7,4128.6,0.2257]
[1761642346988,1.33240907,4128.7,4128.6,0.5574]
[1761642347691,0.7784,4128.7,4128.6,0.7885]
[1761642351294,1.33191623,4128.7,4128.6,0.7885]
[1761642351790,0.3173,4128.9,4128.6,0.4568]
[1761642352092,0.3173,4128.9,4128.5,0.1268]
[1761642352093,1.33191275,4128.8,4128.7,1.97926129]
[1761642352393,1.33191275,4128.8,4128.7,0.7885]
[1761642352587,1.33191275,4128.8,4128.7,1.97926129]
[1761642352992,1.33191275,4128.8,4128.7,1.41646129]
[1761642353489,0.2299,4128.3,4128.2,0.3317]
[1761642353695,0.12846922,4129.0,4128.2,2.41532129]
[1761642353901,1.33200557,4128.9,4128.8,0.5574]
[1761642354193,1.33200557,4128.9,4128.8,0.7885]
[1761642358898,1.10210557,4128.9,4128.8,0.7885]
[1761642360499,1.33200557,4128.9,4128.8,0.7885]
[1761642361497,1.33200557,4128.9,4128.8,0.2257]
[1761642361698,0.4611,4128.7,4128.6,0.3317]
[1761642362002,1.33200557,4128.7,4128.6,0.5574]
[1761642362194,1.33200557,4128.7,4128.2,0.3317]
[1761642362399,0.7784,4128.4,4128.3,1.74816129]
[1761642362595,0.7784,4128.4,4128.3,0.7885]
[1761642362797,0.7784,4128.4,4127.9,0.3317]
[1761642362798,0.3173,4128.1,4127.9,0.3317]
[1761642363100,0.1254,4128.5,4127.8,0.5574]
[1761642363101,0.4611,4127.9,4127.8,0.5574]
[1761642363501,0.7784,4127.9,4127.8,0.7885]
[1761642366503,1.33245707,4127.9,4127.8,0.2257]
[1761642366906,0.7784,4127.9,4127.8,0.7797]
[1761642367109,1.33245911,4127.9,4127.8,0.7797]
[1761642367808,1.33245911,4127.9,4127.8,0.5704]
[1761642368007,1.33245911,4127.9,4127.8,0.2257]
[1761642368707,1.33245911,4127.9,4127.8,0.5447]
[1761642369406,1.33245911,4127.9,4127.8,0.2257]
[1761642369606,1.33245911,4127.9,4127.8,0.5447]
[1761642373007,0.792,4127.7,4127.6,0.00206526]
[1761642373309,1.34555836,4127.7,4127.6,0.00206526]
[1761642373903,0.792,4126.8,4126.7,0.2221]
[1761642374304,0.792,4126.8,4126.7,1.41286129]
[1761642374909,0.792,4126.8,4126.7,1.41498612]
[1761642376604,0.792,4126.8,4126.7,0.00212483]
[1761642376801,0.792,4126.1,4126.0,0.5411]
[1761642377206,0.792,4126.1,4126.0,1.94646129]
[1761642377809,0.79496361,4126.1,4126.0,1.94845263]
[1761642380811,0.79496361,4126.1,4126.0,0.00199134]
[1761642381808,0.79496361,4126.1,4126.0,0.22409134]
[1761642383921,0.79496361,4126.1,4126.0,0.54309134]
[1761642386519,0.79496361,4126.1,4126.0,2.51965263]
[1761642386922,0.79496361,4126.1,4126.0,2.08335263]
[1761642387223,0.79496361,4126.1,4126.0,1.94845263]
[1761642390625,0.00296361,4126.1,4126.0,2.51965263]
[1761642393929,0.57286361,4126.1,4126.0,2.08335263]
[1761642394122,0.57286361,4126.1,4126.0,1.94845263]
[1761642394123,0.79496361,4126.1,4126.0,1.94845263]
[1761642394329,0.79496361,4126.1,4126.0,1.41485263]
[1761642395427,0.79496361,4126.1,4126.0,1.95425263]
[1761642398232,0.79496361,4126.1,4126.0,0.00199134]
[1761642398420,1.34914897,4126.1,4125.4,0.3126]
[1761642398627,1.34914897,4126.1,4124.6,1.72895329]
[1761642398628,0.7651,4125.6,4125.5,1.40136129]
[1761642398827,41.5651,4125.6,4125.5,0.2106]
[1761642399027,41.5651,4125.6,4125.5,1.62816129]
[1761642399526,41.5651,4125.6,4125.5,1.63106063]
[1761642401334,41.5651,4125.6,4125.5,1.40426063]
[1761642402228,41.5651,4125.6,4125.5,1.19366063]
[1761642403133,41.5651,4125.6,4125.5,0.00289934]
[1761642403937,42.12013687,4125.6,4125.5,0.00289934]
[1761642405940,41.5651,4125.6,4125.5,0.52609934]
[1761642408339,41.5651,4125.6,4125.5,0.21349934]
[1761642409039,41.5651,4125.6,4125.5,0.00289934]
[1761642413052,41.5651,4125.6,4125.5,0.21349934]
[1761642414349,41.5651,4125.6,4125.5,0.00289934]
[1761642415151,41.5651,4125.6,4125.5,0.52609934]
[1761642415544,41.5651,4125.6,4125.5,0.21349934]
[1761642416249,41.5651,4125.6,4125.5,1.18924934]
[1761642416953,41.5651,4125.6,4125.5,0.75289934]
[1761642418049,41.5651,4125.6,4125.5,1.94366063]
[1761642418747,0.3305,4125.6,4125.5,2.50881063]
[1761642418953,0.5466,4125.6,4125.5,2.50881063]
[1761642419748,40.9275,4126.0,4125.7,0.43631]
[1761642419952,1.10185269,4125.9,4125.8,0.75]
[1761642420246,1.10185269,4125.9,4125.5,0.00289934]
[1761642420247,0.7651,4125.6,4125.5,0.00289934]
[1761642420452,1.32035269,4125.6,4125.5,0.00289934]
[1761642421947,1.32035269,4125.6,4125.5,2.38001063]
[1761642422147,0.5466,4125.9,4125.6,0.3126]
[1761642422346,0.5466,4125.9,4125.8,0.75]
[1761642422656,1.10205477,4125.9,4125.8,1.94076129]
[1761642422857,1.10205477,4125.9,4125.8,0.75]
[1761642423154,1.10205477,4125.9,4125.8,1.18632]
[1761642423552,1.32055477,4125.9,4125.8,1.18632]
[1761642424058,1.10205477,4125.9,4125.8,1.18632]
[1761642425051,0.77155477,4125.9,4125.8,1.18632]
[1761642425353,0.4392,4125.6,4125.5,0.78564934]
[1761642425553,0.7594,4125.6,4125.5,1.00844934]